Cogmind - Beta 13 @@@ ROGUE MODE // 2024.05.05 @ 09:59:35 Player: A Foxgirl OwO Result: Self-destructed Performance ------------- Evolutions (2) 1000 Regions Visited (5) 1000 Robots Destroyed (39) 195 Value Destroyed (1048) 1048 Prototype IDs (31) 620 Alien Tech Used (0) 0 Bonus (339) 339 TOTAL SCORE: 4202 Bonus ------- Follower Combat Kills 39 Aligned with FarCom 300 Cogmind --------- Core Integrity 237/550 Matter 240/300 Energy 92/100 System Corruption 0% Temperature Cool (9) Movement Treading (305) Ox2 Location -8/Materials Parts ------- > --- POWER (1) -------- (None) > --- PROPULSION (3) --- Advanced Treads > --- UTILITY (5) ------ High-capacity Storage Unit Structural Scanner Visual Processing Unit Improved Terrain Scanner Targeting Computer > --- WEAPON (2) ------- Minigun Minigun > --- INVENTORY (20) --- Ion Engine Light Nuclear Core Wheel Wheel Large Storage Unit Large Storage Unit Structural Scanner Sensor Array Signal Interpreter Signal Interpreter System Shield Heavy Assault Rifle Minigun Gauss Rifle Rocket Launcher Heavy Mace Axe Deploy-a-Sentry Deploy-a-Sentry Deploy-a-Sentry Peak State ------------ > --- POWER ------------ Light Nuclear Core > --- PROPULSION ------- Advanced Treads Advanced Treads Advanced Treads > --- UTILITY ---------- High-capacity Storage Unit Structural Scanner Visual Processing Unit Improved Terrain Scanner Targeting Computer > --- WEAPON ----------- Minigun Minigun > --- INVENTORY -------- Ion Engine Light Nuclear Core Wheel Wheel Large Storage Unit Large Storage Unit Structural Scanner Sensor Array Signal Interpreter Signal Interpreter System Shield Heavy Assault Rifle Minigun Gauss Rifle Rocket Launcher Hammer Axe Deploy-a-Sentry Deploy-a-Sentry Deploy-a-Sentry [Rating: 31] Favorites ----------- Power Ion Engine Engine Ion Engine Power Core Light Nuclear Core Propulsion Wheel Treads Advanced Treads Wheel Wheel Utility Structural Scanner Device Structural Scanner Storage High-capacity Storage Unit Processor Visual Processing Unit Protection Hardened Light Armor Plating Weapon Assault Rifle Ballistic Gun Assault Rifle Launcher Rocket Launcher Build | -11 -10 -10 -10 -9 -8 ------- Run | Yrd Mat Min Exi Min Mat Slots Evolved 4 | . . . . . 4 Power . | . . . . . . Propulsion 1 | . . . . . 1 Utility 3 | . . . . . 3 Weapon . | . . . . . . Parts Attached 42 | 7 6 . . 1 28 Power 5 | 1 . . . . 4 Engine 2 | 1 . . . . 1 Core 3 | . . . . . 3 Reactor . | . . . . . . Propulsion 11 | 2 1 . . . 8 Treads 5 | . . . . . 5 Leg . | . . . . . . Wheel 6 | 2 1 . . . 3 Hover . | . . . . . . Flight . | . . . . . . Utility 10 | 2 3 . . . 5 Device 3 | 1 1 . . . 1 Storage 3 | 1 2 . . . . Processor 3 | . . . . . 3 Hackware . | . . . . . . Protection 1 | . . . . . 1 Artifact . | . . . . . . Weapon 16 | 2 2 . . 1 11 Energy Gun . | . . . . . . Energy Cannon . | . . . . . . Ballistic Gun 15 | 2 2 . . . 11 Ballistic Cannon . | . . . . . . Launcher 1 | . . . . 1 . Special Weapon . | . . . . . . Impact Weapon . | . . . . . . Slashing Weapon . | . . . . . . Piercing Weapon . | . . . . . . Special Melee Weapon . | . . . . . . Unidentified Prototypes . | . . . . . . Parts Lost 10 | . . . . . 10 Power 3 | . . . . . 3 Propulsion 4 | . . . . . 4 Utility 1 | . . . . . 1 Weapon 2 | . . . . . 2 Highest Loss Streak 3 | . . . . . 3 To Critical Strikes . | . . . . . . Average Slot Usage (%) 95 | . 94 100 100 100 95 Engine 8 | . 14 14 14 14 1 Core 2 | . . . . . 5 Treads 8 | . . . . . 16 Wheel 18 | . 28 28 28 28 7 Device 14 | . 9 14 14 14 18 Storage 11 | . 14 14 14 14 9 Processor 7 | . . . . . 15 Ballistic Gun 22 | . 27 28 28 21 17 Naked Turns . | . . . . . . Heaviest Build 56 | 15 50 50 50 52 56 Greatest Support 66 | 26 26 20 20 20 66 Greatest Overweight (x) 3 | . 2 2 2 2 3 Average Overweight (x) 1 | . 1 2 2 2 . Largest Inventory Capacity 20 | 8 20 20 20 20 20 Average Capacity 18 | 6 16 20 20 20 20 Most Carried 20 | 4 20 20 20 20 20 Average Carried 16 | 2 11 20 19 20 18 Final Capacity 20 | 8 20 20 20 20 20 Final Carried 20 | 4 20 20 20 20 20 Class Distribution -------------------- 52% | Mutant 37% | Scavenger-Skirmisher 7% | Skirmisher Dominant Class ---------------- Mutant | -10/Materials Mutant | -10/Mines Mutant | -10/Exiles Mutant | -9/Mines Scavenger-Skirmisher | -8/Materials Resources | -11 -10 -10 -10 -9 -8 ----------- Run | Yrd Mat Min Exi Min Mat Matter Collected 1306 | 282 240 18 . 21 745 Remotely . | . . . . . . Salvage Created 1361 | 101 242 58 . . 960 Parts 84 | 5 21 2 . . 56 Haulers Intercepted . | . . . . . . Recyclers Shooed . | . . . . . . Parts Field Recycled . | . . . . . . Retrieved Matter . | . . . . . . Parts Self-Destructed . | . . . . . . Prevented . | . . . . . . Kills | -11 -10 -10 -10 -9 -8 ------- Run | Yrd Mat Min Exi Min Mat Combat Hostiles Destroyed 30 | . 11 1 . . 18 Guns 30 | . 11 1 . . 18 Classes Destroyed 12 | 2 4 . . . 6 Worker 2 | . . . . . 2 Builder 1 | . . . . . 1 Tunneler 1 | 1 . . . . . Recycler 2 | 1 . . . . 1 Operator 2 | . 1 . . . 1 Watcher 1 | . 1 . . . . Swarmer 13 | . 9 . . . 4 Grunt 12 | . 2 1 . . 9 Brawler 1 | . . . . . 1 Duelist 1 | . . . . . 1 Sentry 2 | . . . . . 2 Hunter 1 | . . . . . 1 Best Kill Streak 4 | 2 3 1 . . 4 Combat Bots Only 4 | . 3 1 . . 4 Max Kills in Single Turn 2 | 1 1 1 . . 2 Gunslinging . | . . . . . . Exploded . | . . . . . . Melee . | . . . . . . Uniques/NPCs Destroyed . | . . . . . . Combat | -11 -10 -10 -10 -9 -8 -------- Run | Yrd Mat Min Exi Min Mat Hostile Shots Fired 179 | . 38 3 . . 138 Missed 51 | . 15 . . . 36 Damage Taken 1951 | . 190 46 . . 1715 Core 366 | . 53 . . . 313 Absorbed by Shields . | . . . . . . Regen/Repaired (Parts) 12 | . 12 . . . . Core Remaining (%) 89 | 100 . . . 78 . Volleys Fired 123 | 2 30 3 . 1 87 Largest 2 | 2 2 2 . 1 2 Hottest 50 | 40 40 40 . 33 50 Shots Fired 239 | 4 60 6 . 1 168 Gun 238 | 4 60 6 . . 168 Cannon . | . . . . . . Launcher 1 | . . . . 1 . Special . | . . . . . . Kinetic 238 | 4 60 6 . . 168 Thermal . | . . . . . . Explosive 1 | . . . . 1 . Electromagnetic . | . . . . . . Robot Hit Streak 16 | 2 6 8 . . 16 Robot Miss Streak 5 | . 4 . . 1 5 Penetration Max . | . . . . . . Secondary Targets 7 | . 3 . . . 4 Max Gunslinging Chain 1 | . 1 . . . 1 Shots Hit Robots 159 | 2 30 6 . . 121 Core Hits 68 | 2 16 3 . . 47 Critical Kills 2 | . . . . . 2 Critical Parts Destroyed 1 | . . . . . 1 Critical Strikes 3 | . . . . . 3 Destroy 3 | . . . . . 3 Melee Attacks . | . . . . . . Impact . | . . . . . . Slashing . | . . . . . . Piercing . | . . . . . . Sneak Attacks . | . . . . . . Combat Hostiles . | . . . . . . Follow-up Attacks . | . . . . . . Damage Inflicted 2311 | 28 401 77 . . 1805 Guns 2293 | 28 401 77 . . 1787 Cannons . | . . . . . . Explosions . | . . . . . . Melee . | . . . . . . Ramming 18 | . . . . . 18 Kinetic 2293 | 28 401 77 . . 1787 Thermal . | . . . . . . Explosive . | . . . . . . Electromagnetic . | . . . . . . Impact . | . . . . . . Slashing . | . . . . . . Piercing . | . . . . . . Highest Corruption . | . . . . . . Average Corruption . | . . . . . . Corruption Purged . | . . . . . . Corruption Blocked . | . . . . . . Overload Shots . | . . . . . . Overflow Damage 3 | . . . . . 3 Projectiles . | . . . . . . Explosions . | . . . . . . Melee 3 | . . . . . 3 Knockbacks . | . . . . . . Impact . | . . . . . . Kinetic . | . . . . . . Secondary . | . . . . . . Self-Inflicted Damage 95 | . . . . . 95 Shots 2 | . . . . . 2 Rammed 1 | . . . . . 1 Targets Rammed 1 | . . . . . 1 Kicked . | . . . . . . Crushed . | . . . . . . Highest Temperature 38 | . . 2 . . 38 Average Temperature 7 | . . 2 . . 7 Received Heat Transfer 657 | . 18 27 . . 612 Siege Activations . | . . . . . . Robots Corrupted . | . . . . . . Combat Hostiles . | . . . . . . Parts Fried . | . . . . . . Impact Corruptions 1 | . . . . . 1 Robots Melted . | . . . . . . Combat Hostiles . | . . . . . . Parts Melted . | . . . . . . Heat Transferred . | . . . . . . Parts Sabotaged . | . . . . . . Parts Stolen . | . . . . . . Parts Stripped . | . . . . . . Power Chain Reactions . | . . . . . . Alert | -11 -10 -10 -10 -9 -8 ------- Run | Yrd Mat Min Exi Min Mat Peak Influence 264 | 10 264 71 . 28 259 Initial 41 | . 6 41 . . 10 Average 68 | 3 103 66 . 3 60 Maximum Alert Level 1 | . 1 . . . 1 Low Security (%) 97 | 100 94 100 . 100 98 Level 1 2 | . 5 . . . 1 Level 2 . | . . . . . . Level 3 . | . . . . . . Level 4 . | . . . . . . Level 5 . | . . . . . . High Security . | . . . . . . Max Security . | . . . . . . Squads Dispatched 9 | . 3 . . . 6 Investigation 4 | . 2 . . . 2 Extermination . | . . . . . . Reinforcement 2 | . 1 . . . 1 Assault . | . . . . . . Garrison 3 | . . . . . 3 Intercept . | . . . . . . Searches Triggered . | . . . . . . Construction Impeded . | . . . . . . Haulers Reinforced . | . . . . . . Active Scanning Responses . | . . . . . . Cargo Convoy Interrupts . | . . . . . . Stealth | -11 -10 -10 -10 -9 -8 --------- Run | Yrd Mat Min Exi Min Mat Distress Signals 5 | . 2 . . . 3 Communications Jammed . | . . . . . . Distress Signals . | . . . . . . Times Spotted 58 | . 19 1 . 1 37 Peak Tracking Total 5 | . 5 1 . 1 5 Tactical Retreats 2 | . . . . . 2 Traps | -11 -10 -10 -10 -9 -8 ------- Run | Yrd Mat Min Exi Min Mat Traps Triggered 3 | . 1 . . . 2 Indirectly . | . . . . . . Trap Hack Attempts . | . . . . . . Triggered . | . . . . . . Disarmed 2 | . 2 . . . . Reprogrammed . | . . . . . . Reused . | . . . . . . Traps Extracted . | . . . . . . Installed . | . . . . . . Triggered . | . . . . . . Machines | -11 -10 -10 -10 -9 -8 ---------- Run | Yrd Mat Min Exi Min Mat Machines Disabled 7 | . . . . 1 6 Max in Single Turn 3 | . . . . . 3 Garrison Access 1 | . . . . . 1 Machines Repaired . | . . . . . . Machines Dismantled . | . . . . . . Machines Sabotaged . | . . . . . . Overloaded Fab Kills . | . . . . . . Hacking | -11 -10 -10 -10 -9 -8 --------- Run | Yrd Mat Min Exi Min Mat Machines Accessed 18 | . 10 . 1 . 7 Terminals 11 | . 7 . . . 4 Fabricators . | . . . . . . Repair Stations 1 | . 1 . . . . Recycling Units 4 | . 2 . . . 2 Scanalyzers . | . . . . . . Garrison Access 1 | . . . . . 1 Total Hacks 63 | . 39 . 1 . 23 Successful 31 | . 21 . 1 . 9 Failed 32 | . 18 . . . 14 Catastrophic 8 | . 3 . . . 5 Database Lockouts . | . . . . . . Manual 33 | . 21 . 1 . 11 Terminals 46 | . 29 . . . 17 Fabricators . | . . . . . . Repair Stations 2 | . 2 . . . . Recycling Units 10 | . 8 . . . 2 Scanalyzers . | . . . . . . Garrison Access 4 | . . . . . 4 Terminal Hacks 22 | . 15 . 1 . 6 Record 1 | . 1 . . . . Prototype ID Bank 7 | . 5 . . . 2 Branch Access Points 2 | . 2 . . . . Emergency Access Points 1 | . 1 . . . . Terminal Index 1 | . . . . . 1 Alert Level 3 | . 1 . . . 2 Locate Traps 4 | . 3 . . . 1 Disarm Traps 1 | . 1 . . . . Registered Components 1 | . 1 . . . . Derelict Proto ID Bank 1 | . . . 1 . . Fabricator Hacks . | . . . . . . Repair Station Hacks 2 | . 2 . . . . Scan Component 1 | . 1 . . . . Repair 1 | . 1 . . . . Recycling Unit Hacks 6 | . 4 . . . 2 Report Inventory 4 | . 2 . . . 2 Retrieve Components 2 | . 2 . . . . Scanalyzer . | . . . . . . Garrison Access Hacks 1 | . . . . . 1 Seal Access 1 | . . . . . 1 Unauthorized Hacks . | . . . . . . Terminals . | . . . . . . Fabricators . | . . . . . . Repair Stations . | . . . . . . Recycling Units . | . . . . . . Scanalyzers . | . . . . . . Garrison Access . | . . . . . . Data Cores Recovered . | . . . . . . Used . | . . . . . . Hacking Detections 16 | . 9 . . . 7 Full Trace Events 4 | . 1 . . . 3 Feedback Events . | . . . . . . Feedback Blocked . | . . . . . . Robot Schematics Acquired . | . . . . . . Robots Built . | . . . . . . Authchips . | . . . . . . Time . | . . . . . . Total Robot Build Rating . | . . . . . . Part Schematics Acquired . | . . . . . . Parts Built . | . . . . . . Authchips . | . . . . . . Time . | . . . . . . Total Part Build Rating . | . . . . . . Parts Repaired 1 | . 1 . . . . Time 26 | . 26 . . . . Parts Recycled . | . . . . . . Recycled Matter . | . . . . . . Retrieved Matter . | . . . . . . Retrieved Components 14 | . 14 . . . . Parts Scanalyzed . | . . . . . . Part Schematics Acquired . | . . . . . . Parts Damaged . | . . . . . . Bothacking | -11 -10 -10 -10 -9 -8 ------------ Run | Yrd Mat Min Exi Min Mat Used RIF Installer . | . . . . . . Robots Hacked . | . . . . . . Non-combat . | . . . . . . Combat . | . . . . . . Robot Hacks Applied . | . . . . . . Relay Couplers Released . | . . . . . . Fabnet Peak Effective % . | . . . . . . Robots Rewired . | . . . . . . Allies Hacked . | . . . . . . Hacks Repelled . | . . . . . . Allies | -11 -10 -10 -10 -9 -8 -------- Run | Yrd Mat Min Exi Min Mat Total Allies 2 | . . . . 2 . Largest Group 2 | . . . . 2 1 Highest-Rated Group 45 | . . . . 45 31 Highest-Rated Ally 31 | . . . . 31 31 Total Orders . | . . . . . . Ally Attacks 5 | . . . . 4 1 Total Damage 64 | . . . . 43 21 Kills 1 | . . . . 1 . Allies Corrupted . | . . . . . . Allies Melted . | . . . . . . Intel | -11 -10 -10 -10 -9 -8 ------- Run | Yrd Mat Min Exi Min Mat Robot Analysis Total . | . . . . . . Derelict Logs Recovered 1 | . . . . 1 . Drone Launches . | . . . . . . Drone Recoveries . | . . . . . . Exploration | -11 -10 -10 -10 -9 -8 ------------- Run | Yrd Mat Min Exi Min Mat Turns Passed 3806 | 70 1238 93 239 384 1782 Spaces Moved 1954 | 57 815 72 214 313 483 Core 2 | 2 . . . . . Treads 272 | . . . . . 272 Legs . | . . . . . . Wheels 1680 | 55 815 72 214 313 211 Hover . | . . . . . . Flight . | . . . . . . Fastest Speed 50 | 50 90 110 110 110 101 Average Speed 114 | 88 104 110 110 110 142 Slowest Speed 305 | 90 110 110 110 110 305 Overloaded Moves . | . . . . . . Propulsion Burnouts . | . . . . . . Robots Hopped . | . . . . . . Cave-ins Triggered . | . . . . . . Exploration Rate (%) 48 | 4 99 15 60 74 37 Regions Visited 5 Branch Regions 3 Pre-discovered Areas . | . . . . . . Known Exits Taken 1 | . 1 . . . . Unknown Exits Taken 4 | 1 . 1 1 1 . Scrap Searched 2 | . . . . 2 . Spaces Dug . | . . . . . . Terrain Destroyed 66 | . . . . 13 53 Melee . | . . . . . . Projectile . | . . . . . . AOE 66 | . . . . 13 53 Terrain Rammed . | . . . . . . Walls Destroyed . | . . . . . . Machines Disabled . | . . . . . . Actions | -11 -10 -10 -10 -9 -8 --------- Run | Yrd Mat Min Exi Min Mat Total 3294 | 69 1140 81 219 351 1434 Wait 1131 | . 278 5 . 37 811 Move 1949 | 56 814 71 213 312 483 Hop . | . . . . . . Pick Up 28 | 4 11 1 3 . 9 Fast Attach 23 | 7 2 . . . 14 Attach 4 | . . . . . 4 Detach 1 | . 1 . . . . Swap 15 | . 4 . . 1 10 Drop 19 | . . 1 3 . 15 Fire 123 | 2 30 3 . 1 87 Melee . | . . . . . . Ram . | . . . . . . Kick . | . . . . . . Crush 1 | . . . . . 1 Escape Stasis . | . . . . . . Rewire . | . . . . . . Trap . | . . . . . . Miscellaneous . | . . . . . . Route ------- -11/Scrapyard -10/Materials (discovered 5 exits: [*Mat x3] / *Min / [Sub]) -10/Mines -10/Exiles -9/Mines -8/Materials History --------- Turn | Location | Event 13 | -11/Scrapyard | Discovered new exit (range 16) 71 | -11/Scrapyard | Entered Materials 117 | -10/Materials | Discovered new exit (range 15) 117 | -10/Materials | Identified exit to Mines 304 | -10/Materials | Build established: Mutant 603 | -10/Materials | Repaired Assault Rifle 824 | -10/Materials | Discovered new exit (range 10) 838 | -10/Materials | Discovered new exit (range 10) 906 | -10/Materials | Discovered new exit (range 11) 1309 | -10/Materials | Entered Mines 1316 | -10/Mines | Received a Rocket Launcher from a helpful Derelict 1395 | -10/Mines | Deemed a non-threat by the Exiles lab entrance 1395 | -10/Mines | Discovered new exit (range 6) 1402 | -10/Mines | Entered Exiles 1430 | -10/Exiles | Met 8R-AWN 1448 | -10/Exiles | Met EX-HEX 1479 | -10/Exiles | Met EX-BIN 1493 | -10/Exiles | Aligned with FarCom system 1494 | -10/Exiles | Given EX-Vault access code 1526 | -10/Exiles | Opened EX-Vault 1533 | -10/Exiles | Found Deploy-a-Sentry 1535 | -10/Exiles | Found Deploy-a-Sentry 1537 | -10/Exiles | Found Deploy-a-Sentry 1560 | -10/Exiles | Warned to stay clear of 0b10 Research branches 1575 | -10/Exiles | Exiles lab attacked by MAIN.C 1631 | -10/Exiles | Discovered new exit (range 10) 1641 | -10/Exiles | Left Exiles lab with Deploy-a-Sentry 1641 | -10/Exiles | Entered Mines 1645 | -9/Mines | Met a Derelict bent on vengeance 1650 | -9/Mines | Learned Materials terminal intel 1833 | -9/Mines | Assembled infested the area 1838 | -9/Mines | Assisted by a Guerilla fighting off Assembled 2014 | -9/Mines | Discovered new exit (range 11) 2025 | -9/Mines | Entered Materials 2025 | -8/Materials | Accompanied by 1 ally 2025 | -8/Materials | Evolved 4 slots: Propulsion x1, Utility x3 2026 | -8/Materials | Loaded intel: 12 terminal locations 2030 | -8/Materials | Led the pair of lost Derelicts to an unsafe place 2144 | -8/Materials | Garrison activated, responded to threat 2429 | -8/Materials | Lost 3 parts (1n1u1w) 2897 | -8/Materials | Build established: Scavenger-Skirmisher 3784 | -8/Materials | Core integrity fell below 50% 3807 | -8/Materials | Self-destructed Last Messages --------------- K-01 Serf collects debris. K-01 Serf cleans the Nuclear Reactor. K-01 Serf collects debris. Lgt. Nuclear Core destroyed. Adv. Treads destroyed. G-47 Trooper destroyed. K-01 Serf collects debris. Acquired 54 matter. K-01 Serf collects debris. Acquired Lgt. Nuclear Core. G-47 Trooper destroyed. Acquired 56 matter. Y-45 Defender destroyed. Fusion Modulator explodes. Terminal disabled. Lgt. Nuclear Core destroyed. U-05 Engineer lays Concrete. Adv. Treads destroyed. U-05 Engineer lays Concrete. U-05 Engineer builds a Wall. Map ----- +----------------------------------------------------+ | ???????????????????????? ??##### """ ### | | ???????????????????????????##### ### T | | ?????????????????????? ? ?????## + | | ???????????????????? ?????????## #### ] | | ???????????????????????? ? ???## "#### " " | | ????????????? # ?? ??? ??#?## T#### """ | | ?????????????#+### ##### "#### """ | | ????????????? #####+######### #### | | ????????????? = ########### | | ????????????? ^ ;;;;#### ################# | | ???????????????? ^ u; ###*########?#?##?### | | ??????????????? #"" ;;;;#+##???####????#??? | | ?????????????? ## " "=##????##????????# | | ??????????????? # "" " ##?#?????#????#?# | | ??????????????? # " u ###??#???#????#?? | | ??????????????? ##""* u ##??????????##??? | | ????????????? ? # " % ] ##??????????????? | | ??????????????? ## " [ =##??????????????? | | ???????????##???## """" ;#######??????????##??? | | ????????????????##""""""; g #######???????#??????? | | ?????????? Y ###???#????????#?????? | | ?????????? #########gr ##?????#?????????????? | | ??????????####?########## ###?????#????????????? | | ??????????####?????????## ##?????????#?#???????? | | ?????????????????????#### ##??#?????????#??????? | | ???????????????????????##@ ##????????#??????????? | | ??????????????????????? ##???##????##????????? | | ?????????????????# ?? k ##?#????#????????????? | | ???????????????? # w ##???????????????????? | | ???????????????? # #########????????? ?????????? | | ???????????????? # ############????????????????? | | ???????????????? # ??????????????????????????????? | | ???????????????? # ??????????????????????????????? | | ???????????????? # ??????????????????????????????? | | ????????????????????????? ???????????????????????? | | ?????????????????????????????????????????????????? | | ?????????????????????????????????????????????????? | | ?????????????????????????????????????????????????? | | ?????????????????????????????????????????????????? | | ?????????????????????????????????????????????????? | | ?????????????????????????????????????????????????? | | ?????????????????????????????????????????????????? | | ?????????????????????????????????????????????????? | | ?????????????????????????????????????????????????? | | ?????????????????????????????????????????????????? | | ?????????????????????????????????????????????????? | | ?????????????????????????????????????????????????? | | ??????????????????????"??????????????????????????? | | ??????????????????????T??????????????????????????? | | ??????????????????????"??????????????????????????? | +----------------------------------------------------+ Best States ------------- Heat Dissipation 31 Energy Generation 14 Energy Capacity 250 Matter Stores 300 Matter Capacity 300 Sight Range 18 Terrain Scan Range 16 Terrain Scan Density 85 Armor Coverage 150 Evasion (%) 42 Targeting Accuracy 5 Recoil Reduction 3 Item Schematics ----------------- None Robot Schematics ------------------ None Fabricated ------------ Nothing Alien Tech Used ----------------- None Achievements -------------- None Challenges ------------ None Game ------ Seed AlphaSeismicRail Manual? 0 Play Time 00:30:58 Cumulative 21.2 hours Start 2024.05.03 @ 16:32:34 End 2024.05.05 @ 09:59:35 Sessions 2 Manual Loads 0 Difficulty Rogue Special Mode None Game No. 45 Rogue 45 Adventurer 0 Explorer 0 Win Type - Total 0 Types 0/0/0/0/0/0/0/0/0 Lore% 16 Gallery% 19 Achievement% 17 Wizard Run 0 Options --------- Layout 1 ASCII 0 Keyboard 0 Movement Mouse Keybinds 0 Fullscreen 0 Font 42/SmallcapsGlow Map View 59x39 Zoom Use 0% Tactical HUD 0 Map Filters NONE Filters NONE Steam 1 RUN: 0ec58ee5-c337-4fbd-b677-8d82620feba7